fUSD/lending_fUSD_20260614
["ID","MTS","AMOUNT","RATE_DAILY","PERIOD"]
[425048720,1781446320000,-50000.0,0.00037991,55]
[425048721,1781446320000,-50000.0,0.00037991,56]
[425048719,1781446320000,-50000.0,0.00037991,70]
[425048718,1781446320000,-50000.0,0.00037991,69]
[425048717,1781446320000,-50000.0,0.00037991,68]
[425048715,1781446320000,-50000.0,0.00037991,57]
[425048714,1781446320000,-50000.0,0.00037991,66]
[425048713,1781446320000,-50000.0,0.00037991,65]
[425048722,1781446320000,-50000.0,0.00037991,57]
[425048712,1781446320000,-50000.0,0.00037991,64]
[425048716,1781446320000,-50000.0,0.00037991,67]
[425048724,1781446320000,-50000.0,0.00037991,54]
[425048711,1781446320000,-50000.0,0.00037991,63]
[425048726,1781446320000,-50000.0,0.00037991,56]
[425048736,1781446320000,-2000.0,0.00037992,120]
[425048737,1781446320000,-160.0,0.00037992,120]
[425048733,1781446320000,-517.0,0.00037992,120]
[425048735,1781446320000,-737.36096119,0.00037992,120]
[425048734,1781446320000,-1390.0,0.00037992,120]
[425048732,1781446320000,-164.0,0.00037992,120]
[425048723,1781446320000,-50000.0,0.00037991,53]
[425048731,1781446320000,-157.0,0.00037992,120]
[425048729,1781446320000,-154.0,0.00037992,120]
[425048728,1781446320000,-150.0,0.00037991,120]
[425048727,1781446320000,-50000.0,0.00037991,57]
[425048725,1781446320000,-50000.0,0.00037991,55]
[425048730,1781446320000,-500.0,0.00037992,120]
[425048750,1781446321000,-426.0,0.00037992,120]
[425048749,1781446321000,-151.0,0.00037992,120]
[425048747,1781446321000,-6809.97,0.00037992,30]
[425048745,1781446321000,-614.0,0.00037992,30]
[425048746,1781446321000,-180.86337406,0.00037992,60]
[425048744,1781446321000,-240.0,0.00037992,30]
[425048741,1781446321000,-152.0,0.00037992,30]
[425048743,1781446321000,-152.0,0.00037992,30]
[425048739,1781446321000,-152.0,0.00037992,30]
[425048740,1781446321000,-152.0,0.00037992,30]
[425048738,1781446321000,-159.0,0.00037992,120]
[425048748,1781446321000,-6809.97,0.00037992,120]
[425048742,1781446321000,-152.0,0.00037992,30]
[425048753,1781446321000,-236.0,0.00037992,120]
[425048752,1781446321000,-201.54,0.00037992,30]
[425048751,1781446321000,-2956.71265587,0.00037992,60]
[425048766,1781446321000,-4244.49844007,0.00038,120]
[425048765,1781446321000,-84272.63414332,0.00038,30]
[425048763,1781446321000,-231.0,0.00038,120]
[425048764,1781446321000,-35000.0,0.00038,120]
[425048762,1781446321000,-2403.96220325,0.00038,40]
[425048761,1781446321000,-11673.87236094,0.00038,120]
[425048767,1781446321000,-15040.39620645,0.00038,30]
[425048759,1781446321000,-396.84341725,0.00038,120]
[425048758,1781446321000,-2500.0,0.00038,30]
[425048757,1781446321000,-17000.0,0.00038,120]
[425048754,1781446321000,-158.0,0.00037992,120]
[425048756,1781446321000,-50000.0,0.00038,30]
[425048755,1781446321000,-50000.0,0.00038,42]
[425048760,1781446321000,-60000.0,0.00038,30]
[425048778,1781446322000,-15009.58053654,0.00038,120]
[425048779,1781446322000,-35036.59954356,0.00038,120]
[425048777,1781446322000,-5000.0,0.00038,120]
[425048775,1781446322000,-8859.50282222,0.00038,30]
[425048776,1781446322000,-19006.90962491,0.00038,120]
[425048773,1781446322000,-1715.1045834,0.00038,120]
[425048771,1781446322000,-3000.0,0.00038,30]
[425048772,1781446322000,-30000.0,0.00038,120]
[425048769,1781446322000,-213438.1015535,0.00038,30]
[425048770,1781446322000,-25000.0,0.00038,120]
[425048768,1781446322000,-2004.63383694,0.00038,30]
[425048780,1781446322000,-503.74141725,0.00038,120]
[425048774,1781446322000,-14310.0,0.00038,30]
[425048781,1781446322000,-1000.0,0.00038,120]
[425048797,1781446322000,-100000.0,0.00038,30]
[425048783,1781446322000,-502.40609097,0.00038,30]
[425048782,1781446322000,-1000.0,0.00038,120]
[425048794,1781446322000,-1000.0,0.00038,90]
[425048793,1781446322000,-43418.29622287,0.00038,120]
[425048795,1781446322000,-12407.62768211,0.00038,120]
[425048792,1781446322000,-223793.03203196,0.00038,120]
[425048790,1781446322000,-310.67515116,0.00038,120]
[425048796,1781446322000,-350.20172469,0.00038,120]
[425048789,1781446322000,-1000.0,0.00038,30]
[425048788,1781446322000,-2776.0,0.00038,60]
[425048787,1781446322000,-30530.0,0.00038,30]
[425048784,1781446322000,-1000.0,0.00038,30]
[425048785,1781446322000,-500.0,0.00038,120]
[425048786,1781446322000,-698.10281417,0.00038,30]
[425048791,1781446322000,-30000.0,0.00038,120]
[425048810,1781446323000,-700.80735403,0.00038,30]
[425048809,1781446323000,-1178.66597781,0.00038,93]
[425048807,1781446323000,-22827.0,0.00038,120]
[425048808,1781446323000,-151.0,0.00038,120]
[425048805,1781446323000,-152.0,0.00038,120]
[425048801,1781446323000,-200000.0,0.00038,30]
[425048802,1781446323000,-322.0,0.00038,120]
[425048803,1781446323000,-928.85527,0.00038,120]
[425048800,1781446323000,-4505.5069475,0.00038,120]
[425048799,1781446323000,-5000.0,0.00038,120]
[425048798,1781446323000,-6485.87192473,0.00038,120]
[425048804,1781446323000,-22926.0,0.00038,120]
[425048812,1781446323000,-10000.0,0.00038,120]
[425048806,1781446323000,-11414.0,0.00038,120]
[425048813,1781446323000,-2092.679,0.00038,120]
[425048811,1781446323000,-200000.0,0.00038,60]
[425048824,1781446323000,-208.48660323,0.00038024,30]
[425048825,1781446323000,-208.48660323,0.00038024,30]
[425048823,1781446323000,-208.48660323,0.00038024,30]
[425048822,1781446323000,-306.56,0.00038024,120]
[425048820,1781446323000,-280.66,0.00038023,60]
[425048826,1781446323000,-546.06119508,0.00038031,60]
[425048818,1781446323000,-4000.0,0.00038,30]
[425048819,1781446323000,-150.0,0.00038016,120]
[425048817,1781446323000,-8827.0,0.00038,120]
[425048816,1781446323000,-4626.0,0.00038,120]
[425048815,1781446323000,-171.0,0.00038,60]
[425048814,1781446323000,-334.8955197,0.00038,120]
[425048821,1781446323000,-204.37,0.00038024,30]
[425048836,1781446324000,-9607.43100594,0.000381,33]
[425048833,1781446324000,-228.62577257,0.000381,33]
[425048835,1781446324000,-16803.05649225,0.000381,33]
[425048834,1781446324000,-538.9366409,0.000381,33]
[425048832,1781446324000,-811.9428694,0.000381,33]
[425048828,1781446324000,-190.890458,0.00038075,120]
[425048829,1781446324000,-500.0,0.00038082,120]
[425048831,1781446324000,-936.12898373,0.000381,33]
[425048827,1781446324000,-280.66,0.00038073,60]
[425048837,1781446324000,-30000.0,0.000381,120]
[425048830,1781446324000,-436.75,0.0003809,93]
[425048838,1781446324000,-362.85262543,0.000381,33]
[425048839,1781446324000,-5000.0,0.000381,120]
[425048840,1781446324000,-1000000.0,0.000381,30]
[425048851,1781446324000,-154.94482123,0.00038164,30]
[425048849,1781446324000,-151.0,0.00038164,30]
[425048850,1781446324000,-166.2025465,0.00038164,30]
[425048846,1781446324000,-152.94885553,0.00038164,30]
[425048847,1781446324000,-184.20063791,0.00038164,30]
[425048848,1781446324000,-201.93286101,0.00038164,30]
[425048844,1781446324000,-546.06119508,0.0003815,60]
[425048843,1781446324000,-30000.0,0.0003815,120]
[425048842,1781446324000,-280.66,0.00038123,60]
[425048841,1781446324000,-1277.10093142,0.00038115,120]
[425048845,1781446324000,-3000.0,0.00038164,120]
[425048859,1781446325000,-152.0,0.00038164,30]
[425048864,1781446325000,-151.0,0.00038164,30]
[425048863,1781446325000,-166.2025465,0.00038164,30]
[425048861,1781446325000,-151.0,0.00038164,30]
[425048860,1781446325000,-151.0,0.00038164,30]
[425048857,1781446325000,-151.0,0.00038164,30]
[425048852,1781446325000,-151.0,0.00038164,30]
[425048856,1781446325000,-166.2025465,0.00038164,30]
[425048854,1781446325000,-166.2025465,0.00038164,30]
[425048853,1781446325000,-184.20063792,0.00038164,30]
[425048855,1781446325000,-166.2025465,0.00038164,30]
[425048862,1781446325000,-3500.0,0.00038164,30]
[425048858,1781446325000,-166.2025465,0.00038164,30]
[425048867,1781446325000,-151.0,0.00038164,30]
[425048878,1781446325000,-500.0,0.00038164,30]
[425048866,1781446325000,-500.0,0.00038164,30]
[425048865,1781446325000,-152.0,0.00038164,30]
[425048879,1781446325000,-174.61919146,0.00038164,30]
[425048877,1781446325000,-151.0,0.00038164,30]
[425048875,1781446325000,-151.0,0.00038164,30]
[425048874,1781446325000,-166.2025465,0.00038164,30]
[425048876,1781446325000,-151.0,0.00038164,30]
[425048880,1781446325000,-151.0,0.00038164,30]
[425048873,1781446325000,-500.0,0.00038164,30]
[425048872,1781446325000,-500.0,0.00038164,30]
[425048868,1781446325000,-201.93286102,0.00038164,30]
[425048869,1781446325000,-200.0,0.00038164,30]
[425048870,1781446325000,-520.0,0.00038164,30]
[425048871,1781446325000,-1180.563003,0.00038164,30]
[425048890,1781446326000,-152.0,0.00038164,30]
[425048889,1781446326000,-500.0,0.00038164,30]
[425048891,1781446326000,-151.0,0.00038164,30]
[425048887,1781446326000,-500.0,0.00038164,30]
[425048888,1781446326000,-151.0,0.00038164,30]
[425048885,1781446326000,-166.2025465,0.00038164,30]
[425048884,1781446326000,-500.0,0.00038164,30]
[425048883,1781446326000,-500.0,0.00038164,30]
[425048881,1781446326000,-152.0,0.00038164,30]
[425048882,1781446326000,-175.3979319,0.00038164,30]
[425048892,1781446326000,-500.0,0.00038164,30]
[425048886,1781446326000,-151.0,0.00038164,30]
[425048893,1781446326000,-500.0,0.00038164,30]
[425048894,1781446326000,-166.2025465,0.00038164,30]
[425048896,1781446326000,-151.0,0.00038164,30]
[425048907,1781446326000,-152.0,0.00038164,30]
[425048908,1781446326000,-500.0,0.00038164,30]
[425048906,1781446326000,-151.0,0.00038164,30]
[425048904,1781446326000,-500.0,0.00038164,30]
[425048903,1781446326000,-151.0,0.00038164,30]
[425048905,1781446326000,-187.31204927,0.00038164,30]
[425048895,1781446326000,-151.0,0.00038164,30]
[425048901,1781446326000,-500.0,0.00038164,30]
[425048902,1781446326000,-166.2025465,0.00038164,30]
[425048898,1781446326000,-151.0,0.00038164,30]
[425048899,1781446326000,-152.0,0.00038164,30]
[425048897,1781446326000,-500.0,0.00038164,30]
[425048909,1781446326000,-500.0,0.00038164,30]
[425048900,1781446326000,-500.0,0.00038164,30]
[425048922,1781446327000,-166.2025465,0.00038164,30]
[425048921,1781446327000,-500.0,0.00038164,30]
[425048918,1781446327000,-500.0,0.00038164,30]
[425048920,1781446327000,-152.0,0.00038164,30]
[425048919,1781446327000,-151.0,0.00038164,30]
[425048916,1781446327000,-500.0,0.00038164,30]
[425048915,1781446327000,-500.0,0.00038164,30]
[425048913,1781446327000,-151.0,0.00038164,30]
[425048914,1781446327000,-152.0,0.00038164,30]
[425048910,1781446327000,-151.0,0.00038164,30]
[425048911,1781446327000,-500.0,0.00038164,30]
[425048923,1781446327000,-500.0,0.00038164,30]
[425048917,1781446327000,-151.0,0.00038164,30]
[425048925,1781446327000,-500.0,0.00038164,30]
[425048912,1781446327000,-166.2025465,0.00038164,30]
[425048926,1781446327000,-151.0,0.00038164,30]
[425048939,1781446327000,-500.0,0.00038164,30]
[425048938,1781446327000,-151.0,0.00038164,30]
[425048936,1781446327000,-500.0,0.00038164,30]
[425048937,1781446327000,-166.2025465,0.00038164,30]
[425048935,1781446327000,-152.0,0.00038164,30]
[425048933,1781446327000,-500.0,0.00038164,30]
[425048924,1781446327000,-151.0,0.00038164,30]
[425048930,1781446327000,-500.0,0.00038164,30]
[425048932,1781446327000,-500.0,0.00038164,30]
[425048931,1781446327000,-151.0,0.00038164,30]
[425048929,1781446327000,-166.2025465,0.00038164,30]
[425048927,1781446327000,-500.0,0.00038164,30]
[425048928,1781446327000,-152.0,0.00038164,30]
[425048934,1781446327000,-151.0,0.00038164,30]
[425048953,1781446328000,-500.0,0.00038164,30]
[425048952,1781446328000,-166.2025465,0.00038164,30]
[425048949,1781446328000,-500.0,0.00038164,30]
[425048948,1781446328000,-500.0,0.00038164,30]
[425048950,1781446328000,-151.0,0.00038164,30]
[425048947,1781446328000,-152.0,0.00038164,30]
[425048944,1781446328000,-166.2025465,0.00038164,30]
[425048946,1781446328000,-500.0,0.00038164,30]
[425048942,1781446328000,-500.0,0.00038164,30]
[425048943,1781446328000,-151.0,0.00038164,30]
[425048941,1781446328000,-152.0,0.00038164,30]
[425048951,1781446328000,-500.0,0.00038164,30]
[425048945,1781446328000,-500.0,0.00038164,30]
[425048940,1781446328000,-500.0,0.00038164,30]
[425048954,1781446328000,-151.0,0.00038164,30]
[425048956,1781446328000,-500.0,0.00038164,30]
[425048955,1781446328000,-500.0,0.00038164,30]
[425048966,1781446328000,-500.0,0.00038164,30]
[425048968,1781446328000,-151.0,0.00038164,30]
[425048967,1781446328000,-500.0,0.00038164,30]
[425048964,1781446328000,-500.0,0.00038164,30]
[425048963,1781446328000,-166.2025465,0.00038164,30]
[425048965,1781446328000,-151.0,0.00038164,30]
[425048961,1781446328000,-151.0,0.00038164,30]
[425048960,1781446328000,-500.0,0.00038164,30]
[425048958,1781446328000,-500.0,0.00038164,30]
[425048957,1781446328000,-151.0,0.00038164,30]
[425048959,1781446328000,-166.2025465,0.00038164,30]
[425048962,1781446328000,-500.0,0.00038164,30]
[425048975,1781446329000,-225.52794389,0.00038188,120]
[425048981,1781446329000,-213.62090161,0.00038188,120]
[425048979,1781446329000,-209.0290413,0.00038188,120]
[425048978,1781446329000,-206.79450401,0.00038188,120]
[425048976,1781446329000,-213.48459273,0.00038188,120]
[425048980,1781446329000,-209.02904131,0.00038188,120]
[425048972,1781446329000,-280.66,0.00038173,60]
[425048973,1781446329000,-211.43435247,0.00038188,120]
[425048971,1781446329000,-647.22003402,0.0003817,120]
[425048969,1781446329000,-500.0,0.00038164,30]
[425048970,1781446329000,-348533.238722,0.0003817,120]
[425048974,1781446329000,-213.04140272,0.00038188,120]
[425048982,1781446329000,-213.08619386,0.00038188,120]
[425048977,1781446329000,-214.57093055,0.00038188,120]
[425048983,1781446329000,-211.71887929,0.00038188,120]
[425048996,1781446329000,-2289.748,0.000382,60]
[425048995,1781446329000,-2095.2401,0.000382,120]
[425048994,1781446329000,-207.43326642,0.000382,60]
[425048992,1781446329000,-1426.98,0.000382,120]
[425048993,1781446329000,-466.769,0.000382,120]
[425048991,1781446329000,-1426.988,0.000382,120]
[425048984,1781446329000,-211.7188793,0.00038188,120]
[425048989,1781446329000,-2327.87,0.000382,60]
[425048997,1781446329000,-2289.748,0.000382,60]
[425048988,1781446329000,-2327.22,0.000382,60]
[425048987,1781446329000,-147980.07511058,0.000382,120]
[425048986,1781446329000,-150.0,0.00038196,120]
[425048985,1781446329000,-213.62090161,0.00038188,120]
[425048990,1781446329000,-151.55828375,0.000382,120]
[425049010,1781446330000,-546.06119508,0.00038269,60]
[425049008,1781446330000,-147922.35,0.00038262,30]
[425049006,1781446330000,-252.76,0.00038262,30]
[425049007,1781446330000,-151.66,0.00038262,30]
[425049005,1781446330000,-30000.0,0.0003825,120]
[425049003,1781446330000,-150.0,0.00038226,120]
[425049002,1781446330000,-280.66,0.00038223,60]
[425049001,1781446330000,-1334.2,0.000382,90]
[425049000,1781446330000,-1434.41,0.000382,90]
[425048998,1781446330000,-2289.74,0.000382,60]
[425048999,1781446330000,-473.599,0.000382,120]
[425049009,1781446330000,-221883.52,0.00038262,120]
[425049004,1781446330000,-150.0,0.00038237,120]
[425049011,1781446330000,-280.66,0.00038273,60]
[425049014,1781446330000,-20000.0,0.000383,120]
[425049013,1781446330000,-2000.0,0.0003829,120]
[425049024,1781446330000,-1000.0,0.00038356,120]
[425049025,1781446330000,-500.0,0.00038356,120]
[425049023,1781446330000,-30000.0,0.0003835,120]
[425049021,1781446330000,-986.49697893,0.00038329,120]
[425049022,1781446330000,-180.43,0.00038331,120]
[425049020,1781446330000,-254.38246283,0.00038329,120]
[425049026,1781446330000,-164.98308224,0.00038356,120]
[425049019,1781446330000,-280.66,0.00038323,60]
[425049015,1781446330000,-50000.0,0.000383,120]
[425049017,1781446330000,-196.67,0.000383,120]
[425049016,1781446330000,-34283.60017975,0.000383,60]
[425049012,1781446330000,-150.0,0.00038279,120]
[425049018,1781446330000,-177.28,0.000383,120]
[425049037,1781446331000,-151.0,0.00038356,30]
[425049036,1781446331000,-151.0,0.00038356,30]
[425049035,1781446331000,-151.0,0.00038356,30]
[425049033,1781446331000,-151.0,0.00038356,30]
[425049034,1781446331000,-151.0,0.00038356,30]
[425049031,1781446331000,-151.0,0.00038356,30]
[425049030,1781446331000,-151.0,0.00038356,30]
[425049027,1781446331000,-4015.0,0.00038356,120]
[425049029,1781446331000,-2811.74441966,0.00038356,30]
[425049028,1781446331000,-600.0,0.00038356,120]
[425049038,1781446331000,-151.0,0.00038356,30]
[425049032,1781446331000,-151.0,0.00038356,30]
[425049039,1781446331000,-151.0,0.00038356,30]
[425049049,1781446331000,-193.156313,0.00038356,120]
[425049041,1781446331000,-151.0,0.00038356,30]
[425049052,1781446331000,-469.8,0.00038356,30]
[425049051,1781446331000,-469.8,0.00038356,30]
[425049040,1781446331000,-151.0,0.00038356,30]
[425049053,1781446331000,-469.8,0.00038356,30]
[425049048,1781446331000,-152.368194,0.00038356,30]
[425049050,1781446331000,-469.8,0.00038356,30]
[425049047,1781446331000,-151.0,0.00038356,30]
[425049044,1781446331000,-151.0,0.00038356,30]
[425049045,1781446331000,-151.0,0.00038356,30]
[425049043,1781446331000,-151.0,0.00038356,30]
[425049042,1781446331000,-151.0,0.00038356,30]
[425049046,1781446331000,-151.0,0.00038356,30]
[425049055,1781446332000,-469.8,0.00038356,30]
[425049056,1781446332000,-469.8,0.00038356,30]
[425049054,1781446332000,-469.8,0.00038356,30]
[425049057,1781446332000,-469.8,0.00038356,30]
[425049059,1781446332000,-469.8,0.00038356,30]
[425049058,1781446332000,-469.8,0.00038356,30]
[425049061,1781446332000,-469.8,0.00038356,30]
[425049064,1781446332000,-469.8,0.00038356,30]
[425049062,1781446332000,-469.8,0.00038356,30]
[425049063,1781446332000,-469.8,0.00038356,30]
[425049065,1781446332000,-469.8,0.00038356,30]
[425049067,1781446332000,-469.8,0.00038356,30]
[425049066,1781446332000,-469.8,0.00038356,30]
[425049068,1781446332000,-469.8,0.00038356,30]
[425049069,1781446332000,-469.8,0.00038356,30]
[425049060,1781446332000,-469.8,0.00038356,30]
[425049070,1781446333000,151.0,0.00038164,30]
[425049072,1781446333000,500.0,0.00038164,30]
[425049071,1781446333000,500.0,0.00038164,30]
[425049073,1781446333000,500.0,0.00036348,60]
[425049076,1781446333000,151.0,0.00038164,30]
[425049075,1781446333000,1239.90808082,0.00038356,30]
[425049074,1781446333000,190.51401717,0.000339,120]
[425049077,1781446333000,151.0,0.00038164,30]
[425049082,1781446333000,500.0,0.00038164,30]
[425049078,1781446333000,166.2025465,0.00038164,30]
[425049085,1781446333000,500.0,0.00038164,30]
[425049086,1781446333000,500.0,0.00038164,30]
[425049084,1781446333000,347.03,0.00026099,30]
[425049079,1781446333000,500.0,0.00038164,30]
[425049080,1781446333000,500.0,0.00038164,30]
[425049083,1781446333000,151.0,0.00038164,30]
[425049081,1781446333000,530.79,0.00034544,60]
[425049094,1781446334000,2723.99,0.00037992,30]
[425049093,1781446334000,2000.0,0.00037315,30]
[425049092,1781446334000,2000.0,0.00035616,30]
[425049090,1781446334000,180.16467773,0.00032967,120]
[425049091,1781446334000,298.5,0.00031806,30]
[425049088,1781446334000,23753.0,0.00035568,120]
[425049087,1781446334000,2723.99,0.00036092,30]
[425049089,1781446334000,166.2025465,0.00038164,30]
[425049098,1781446335000,2000.0,0.0003835,30]
[425049097,1781446335000,3631.98,0.00037978,60]
[425049096,1781446335000,954.04561594,0.00038356,120]
[425049095,1781446335000,175.0,0.00037992,120]
[425049099,1781446336000,992.07,0.00034544,60]
[425049100,1781446345000,187.491189,0.0002762,120]
[425049101,1781446431000,-150.0,0.0001629,2]
[425049102,1781446485000,-150.0,0.0001629,2]
[425049103,1781446538000,-150.0,0.0001629,2]
[425049104,1781446591000,-1035.10099046,0.0001629,2]
[425049105,1781446608000,-378.71900954,0.0001629,2]
[425049106,1781446659000,-352.22346137,0.00016289,2]
[425049107,1781446664000,4000.0,0.00015,2]
[425049108,1781446712000,-200.0,0.00015596,2]
[425049109,1781446723000,500.0,0.00030136,120]
[425049111,1781446724000,500.0,0.00030136,120]
[425049110,1781446724000,500.0,0.00030136,120]
[425049112,1781446725000,500.0,0.00030136,120]
[425049114,1781446725000,500.0,0.00030136,120]
[425049113,1781446725000,500.0,0.00030136,120]
[425049115,1781446726000,612.19087197,0.00030136,120]
[425049116,1781446744000,2935.52497219,0.00030136,120]
[425049117,1781446752000,30012.12,0.00030137,120]
[425049118,1781446766000,-166.66,0.00015678,2]
[425049120,1781446819000,-300.0,0.00015758,2]
[425049121,1781446827000,1641.58152,0.0003,120]
[425049122,1781446858000,2000.0,0.00030137,120]
[425049123,1781446873000,-600.0,0.00015758,2]
[425049124,1781446874000,2000.0,0.00030137,120]
[425049125,1781446884000,2000.0,0.00030137,120]
[425049126,1781446894000,2000.0,0.00030137,120]
[425049127,1781446901000,2000.0,0.00030137,120]
[425049128,1781446908000,2000.0,0.00030137,120]
[425049129,1781446916000,2000.0,0.00030137,120]
[425049130,1781446923000,2000.0,0.00030137,120]
[425049131,1781446928000,298.8808056,0.0002951,120]
[425049132,1781446930000,2000.0,0.00030137,120]
[425049133,1781446932000,185.05835562,0.000269,120]
[425049134,1781446936000,2000.0,0.00030137,120]
[425049135,1781446943000,2000.0,0.00030137,120]
[425049137,1781446950000,187.491189,0.00027708,120]
[425049136,1781446950000,2000.0,0.00030137,120]
[425049138,1781446959000,2333.0,0.00030137,120]
[425049139,1781447019000,7719.80820109,0.0002876,120]
[425049140,1781447073000,1001.0,0.00029041,120]
[425049141,1781447147000,-287.0,0.00015498,2]
[425049142,1781447201000,-500.0,0.00015499,2]
[425049144,1781447234000,-264.25595301,0.00015498,2]
[425049143,1781447234000,-300.0,0.00015497,2]
[425049146,1781447234000,-96.11630549,0.00015498,2]
[425049145,1781447234000,-500.0,0.00015498,2]
[425049148,1781447235000,-118.61773503,0.00015498,2]
[425049147,1781447235000,-227.18422833,0.00015498,2]
[425049149,1781447254000,-381.38226497,0.00015498,2]
[425049150,1781447307000,-500.0,0.00015498,2]
[425049151,1781447361000,-500.0,0.00015497,2]
[425049152,1781447414000,-500.0,0.00015497,2]
[425049153,1781447422000,250.0,0.00014,2]
[425049172,1781447431000,-500.0,0.00015497,2]
[425049174,1781447431000,-500.0,0.00015497,2]
[425049167,1781447431000,-500.0,0.00015497,2]
[425049164,1781447431000,-500.0,0.00015497,2]
[425049165,1781447431000,-500.0,0.00015497,2]
[425049159,1781447431000,-179.0,0.00015497,2]
[425049162,1781447431000,-500.0,0.00015497,2]
[425049161,1781447431000,-500.0,0.00015497,2]
[425049160,1781447431000,-500.0,0.00015497,2]
[425049173,1781447431000,-500.0,0.00015497,2]
[425049163,1781447431000,-392.61497667,0.00015497,2]
[425049166,1781447431000,-500.0,0.00015497,2]
[425049170,1781447431000,-500.0,0.00015497,2]
[425049169,1781447431000,-500.0,0.00015497,2]
[425049168,1781447431000,-500.0,0.00015497,2]
[425049179,1781447431000,-500.0,0.00015497,2]
[425049176,1781447431000,-500.0,0.00015497,2]
[425049182,1781447431000,-500.0,0.00015497,2]
[425049177,1781447431000,-500.0,0.00015497,2]
[425049181,1781447431000,-500.0,0.00015497,2]
[425049180,1781447431000,-500.0,0.00015497,2]
[425049175,1781447431000,-500.0,0.00015497,2]
[425049183,1781447431000,-500.0,0.00015497,2]
[425049171,1781447431000,-500.0,0.00015497,2]
[425049178,1781447431000,-500.0,0.00015497,2]
[425049204,1781447432000,-699.64833222,0.00015497,2]
[425049205,1781447432000,-699.64833222,0.00015497,2]
[425049209,1781447432000,-699.64833222,0.00015497,2]
[425049202,1781447432000,-699.64833222,0.00015497,2]
[425049208,1781447432000,-699.64833222,0.00015497,2]
[425049210,1781447432000,-699.64833222,0.00015497,2]
[425049225,1781447432000,-699.64833222,0.00015497,2]
[425049211,1781447432000,-699.64833222,0.00015497,2]
[425049222,1781447432000,-699.64833222,0.00015497,2]
[425049219,1781447432000,-699.64833222,0.00015497,2]
[425049220,1781447432000,-699.64833222,0.00015497,2]
[425049207,1781447432000,-699.64833222,0.00015497,2]
[425049224,1781447432000,-699.64833222,0.00015497,2]
[425049213,1781447432000,-699.64833222,0.00015497,2]
[425049212,1781447432000,-699.64833222,0.00015497,2]
[425049197,1781447432000,-699.64833222,0.00015497,2]
[425049194,1781447432000,-699.64833222,0.00015497,2]
[425049184,1781447432000,-500.0,0.00015497,2]
[425049186,1781447432000,-500.5741142,0.00015497,2]
[425049185,1781447432000,-577.70180389,0.00015497,2]
[425049188,1781447432000,-500.0,0.00015497,2]
[425049198,1781447432000,-699.64833222,0.00015497,2]
[425049189,1781447432000,-152.60371282,0.00015497,2]
[425049201,1781447432000,-699.64833222,0.00015497,2]
[425049199,1781447432000,-699.64833222,0.00015497,2]
[425049190,1781447432000,-699.64833222,0.00015497,2]
[425049187,1781447432000,-500.0,0.00015497,2]
[425049215,1781447432000,-699.64833222,0.00015497,2]
[425049192,1781447432000,-699.64833222,0.00015497,2]
[425049196,1781447432000,-699.64833222,0.00015497,2]
[425049193,1781447432000,-699.64833222,0.00015497,2]
[425049200,1781447432000,-699.64833222,0.00015497,2]
[425049214,1781447432000,-699.64833222,0.00015497,2]